bitfinex/quotes_ETHUSD_20241216
["timestamp","ask_amount","ask_price","bid_price","bid_amount"]
[1734349679021,2.55206,3918.4,3916.8,0.1349536]
[1734349679260,2.55258,3917.7,3916.7,0.44553597]
[1734349679421,2.55206,3918.4,3916.7,0.44553597]
[1734349679622,3.0,3918.3,3916.6,0.7508]
[1734349679818,0.8008,3918.2,3916.6,0.7508]
[1734349680051,2.55305,3916.9,3916.6,0.7508]
[1734349680533,2.5531,3916.8,3915.8,0.7508]
[1734349681074,2.55299,3917.0,3915.8,2.28304]
[1734349681313,0.8008,3917.8,3915.8,2.28304]
[1734349681314,2.55251,3917.7,3916.0,1.53217]
[1734349681465,2.55288,3917.2,3916.0,1.53217]
[1734349681958,0.8008,3917.8,3915.9,3.24607563]
[1734349682152,2.55291,3917.1,3915.9,3.24607563]
[1734349682369,3.8008,3917.8,3915.9,3.24607563]
[1734349682574,2.55356,3916.1,3915.8,0.7508]
[1734349682792,2.55358,3916.1,3915.8,0.7508]
[1734349683112,0.7942,3916.7,3915.7,0.1641191]
[1734349683289,2.55375,3915.8,3915.7,0.1641191]
[1734349683491,2.55375,3915.8,3915.4,0.8194]
[1734349683668,2.55388,3915.7,3915.4,0.8194]
[1734349684086,2.55395,3915.6,3914.6,3.78523526]
[1734349684405,2.55395,3915.5,3914.6,3.78523526]
[1734349684956,2.55383,3915.7,3914.6,3.78523526]
[1734349685169,0.510745,3915.7,3914.6,3.78523526]
[1734349685297,3.0,3915.8,3914.6,3.78523526]
[1734349685494,2.554,3915.5,3914.6,3.78523526]
[1734349685732,2.55402,3915.4,3914.6,3.78523526]
[1734349686196,2.55374,3915.9,3914.6,3.78523526]
[1734349686399,2.55408,3915.3,3914.6,3.78523526]
[1734349686942,3.32218,3915.3,3914.6,3.78523526]
[1734349687730,6.32218,3915.3,3914.6,3.78523526]
[1734349687948,0.632218,3915.2,3914.6,3.78523526]
[1734349688149,2.55422,3915.1,3914.6,3.78523526]
[1734349688445,2.55422,3915.1,3914.6,3.73523526]
[1734349688684,0.7681,3915.3,3914.6,3.73523526]
[1734349688856,2.55433,3915.0,3914.6,3.73523526]
[1734349689368,0.7681,3915.3,3914.6,3.73523526]
[1734349689642,2.55441,3914.8,3914.6,3.73523526]
[1734349689854,2.55447,3914.7,3914.6,3.73523526]
[1734349691041,2.55447,3914.7,3914.6,2.67120545]
[1734349692258,5.55453,3914.6,3914.5,5.45e-06]
[1734349693493,6.31233,3914.6,3914.5,5.45e-06]
[1734349693755,7.2245541,3914.6,3914.5,5.45e-06]
[1734349694149,3.4667541,3914.6,3914.5,5.45e-06]
[1734349695236,6.4667541,3914.6,3914.5,5.45e-06]
[1734349695611,2.55545,3913.2,3913.1,0.7603]
[1734349696046,2.55555,3913.1,3912.6,0.8217]
[1734349696261,2.55493,3914.0,3912.7,0.32699246]
[1734349696661,2.55564,3913.0,3912.7,0.27699246]
[1734349696863,2.55506,3913.8,3912.6,0.8217]
[1734349697090,2.55547,3913.2,3912.6,0.8217]
[1734349697251,0.7812,3914.1,3912.6,0.8217]
[1734349697474,2.55553,3913.1,3912.6,0.8217]
[1734349698159,2.55521,3913.6,3912.6,0.8217]
[1734349698160,0.7812,3914.1,3912.6,0.8217]
[1734349698365,0.62244246,3914.0,3912.6,0.8217]
[1734349698726,2.55549,3913.2,3912.6,0.8217]
[1734349698925,2.55553,3913.1,3912.6,0.8217]
[1734349699232,2.55559,3913.0,3912.6,0.8217]
[1734349699432,2.55555,3913.1,3912.6,0.8217]
[1734349700578,2.55528,3913.5,3912.6,0.8217]
[1734349700870,0.62244246,3914.0,3912.6,0.8217]
[1734349700871,2.55545,3913.3,3912.6,1.14869246]
[1734349701384,2.55512,3913.7,3912.6,1.14869246]
[1734349701385,2.55554,3913.1,3912.6,1.14869246]
[1734349701601,2.55578,3912.7,3912.5,0.005]
[1734349701882,2.55574,3912.8,3912.5,0.005]
[1734349702229,2.55556,3913.1,3912.5,0.005]
[1734349702487,2.55527,3913.5,3912.6,0.8061]
[1734349702776,2.55509,3913.8,3913.1,2.44322459]
[1734349702979,0.7702,3914.5,3913.1,2.44322459]
[1734349703183,2.55464,3914.5,3913.2,0.7986]
[1734349703481,0.8121,3915.3,3913.6,1.3486]
[1734349703685,2.55434,3915.0,3913.6,1.3486]
[1734349703846,0.8121,3915.3,3913.8,0.55]
[1734349703847,2.55446,3914.8,3913.8,0.55]
[1734349704027,2.55421,3915.1,3914.3,2.44322459]
[1734349704480,0.50529455,3915.6,3914.8,2.44322459]
[1734349704632,0.8121,3916.1,3914.8,2.44322459]
[1734349704837,2.55304,3916.9,3914.8,2.44322459]
[1734349704838,2.55384,3915.7,3914.9,0.7986]
[1734349705566,2.55353,3916.2,3914.9,0.7986]
[1734349705880,2.55361,3916.1,3915.0,0.55]
[1734349706083,2.55339,3916.4,3915.3,0.55]
[1734349706372,2.55303,3916.9,3915.3,0.55]
[1734349706690,2.55337,3916.4,3915.3,1.05853081]
[1734349706885,0.335103,3916.8,3914.9,3.7986]
[1734349706886,2.55316,3916.7,3914.9,3.7986]
[1734349707177,2.55414,3915.3,3914.9,0.7986]
[1734349707361,3.80082815,3916.4,3914.9,0.7986]
[1734349707529,3.80082815,3916.4,3913.7,3.00282815]
[1734349707530,2.55423,3915.1,3913.7,3.00282815]
[1734349707727,0.38008282,3916.3,3913.7,4.53589815]
[1734349707728,2.55371,3915.9,3913.7,4.53589815]
[1734349708048,3.0,3916.1,3914.1,3.00282815]
[1734349708244,3.0,3916.1,3912.9,0.25]
[1734349708245,2.55384,3915.7,3914.5,3.00282815]
[1734349708581,2.55389,3915.6,3914.7,0.55]
[1734349708786,2.55427,3915.1,3914.2,0.55]
[1734349709136,0.37315228,3916.2,3914.2,0.55]
[1734349709478,2.55382,3915.7,3914.1,3.00282815]
[1734349709674,2.55436,3914.9,3913.8,3.0]
[1734349709843,2.5542,3915.2,3914.1,3.00282815]
[1734349710181,2.55429,3915.0,3914.1,3.00282815]
[1734349710476,2.55429,3915.0,3914.2,0.8189]
[1734349711078,2.55409,3915.3,3914.2,0.8189]
[1734349711414,2.55409,3915.3,3914.3,0.55]
[1734349711707,0.15512351,3916.1,3914.6,0.55]
[1734349711708,2.5539,3915.6,3914.6,0.55]
[1734349711988,0.15512351,3916.1,3914.6,1.05855781]
[1734349712191,2.55396,3915.5,3914.6,1.05855781]
[1734349712899,2.55362,3916.0,3914.7,0.8065]
[1734349712900,2.55383,3915.7,3914.7,0.8065]
[1734349713099,0.15512351,3916.1,3914.7,0.8065]
[1734349713388,0.15512351,3916.1,3915.0,0.55]
[1734349713548,2.55393,3915.6,3915.1,0.81]
[1734349713758,2.55378,3915.8,3915.1,0.81]
[1734349713943,0.7771,3916.9,3915.1,0.81]
[1734349713944,2.55349,3916.3,3915.1,0.81]
[1734349714185,2.55323,3916.6,3915.1,0.81]
[1734349714362,2.55336,3916.4,3915.1,0.81]
[1734349714572,2.55359,3916.1,3915.1,0.81]
[1734349714775,2.55364,3916.0,3915.1,0.81]
[1734349714961,0.7771,3916.9,3915.2,0.55]
[1734349715176,0.7945,3917.4,3915.5,1.53237]
[1734349715381,0.7945,3917.4,3916.1,0.8127]
[1734349715605,2.55278,3917.3,3916.1,0.8127]
[1734349715781,2.55284,3917.2,3916.1,3.81552815]
[1734349715998,2.55325,3916.6,3916.1,0.8127]
[1734349716196,0.255284,3917.1,3916.1,0.8127]
[1734349716398,2.55315,3916.8,3916.1,0.8127]
[1734349716633,2.55276,3917.4,3916.1,2.34483]
[1734349716782,2.55279,3917.3,3916.2,0.234483]
[1734349716987,2.55285,3917.2,3916.2,0.234483]
[1734349717189,2.55299,3917.0,3916.2,0.234483]
[1734349717389,2.55276,3917.4,3916.2,0.234483]
[1734349717618,2.55287,3917.2,3916.3,0.5579353]
[1734349717801,2.9935907,3917.7,3916.3,0.5579353]
[1734349717802,2.55258,3917.6,3916.4,1.53201]
[1734349718002,0.4410307,3917.7,3916.7,0.7901]
[1734349718189,2.55239,3917.9,3916.7,0.7901]
[1734349718413,0.8091,3918.4,3917.0,3.00282815]
[1734349719071,2.55228,3918.1,3917.0,3.00282815]
[1734349719268,0.8091,3918.4,3917.0,3.00282815]
[1734349719510,0.8091,3918.4,3916.7,0.7901]
[1734349719720,2.55258,3917.6,3916.7,0.7901]
[1734349720086,0.510502,3917.6,3916.7,0.7901]
[1734349720304,2.55284,3917.2,3916.7,0.7901]
[1734349720676,2.55225,3918.1,3916.7,0.7901]
[1734349720983,2.55277,3917.4,3916.7,0.7901]
[1734349721183,2.55258,3917.6,3916.7,0.7901]
[1734349721384,2.45608497,3917.6,3916.7,0.7901]
[1734349721995,2.55285,3917.2,3916.7,0.7901]
[1734349722271,2.5527,3917.5,3916.7,0.7901]
[1734349723021,0.8091,3918.4,3916.7,0.7901]
[1734349723236,2.55274,3917.4,3916.7,0.7901]
[1734349723549,2.55277,3917.4,3916.7,0.7901]
[1734349723757,2.55219,3918.2,3916.7,0.7901]
[1734349724044,2.55267,3917.5,3916.7,0.7901]
[1734349724241,2.55225,3918.1,3916.7,0.7901]
[1734349724458,2.55212,3918.3,3916.7,0.7901]
[1734349724616,2.55291,3917.1,3916.7,0.7901]
[1734349725174,5.55212,3918.3,3916.7,0.7901]
[1734349725175,3.0,3918.3,3917.0,3.00282815]
[1734349725437,2.23594794,3918.8,3915.2,0.25]
[1734349725438,2.55231,3918.1,3917.4,3.00282815]
[1734349725996,0.90621316,3918.8,3917.4,3.00282815]
[1734349726446,2.55243,3917.9,3917.1,0.8112]
[1734349727354,2.55212,3918.3,3917.5,0.7908]
[1734349727561,2.55219,3918.2,3917.5,0.7908]
[1734349727741,2.55204,3918.5,3917.5,0.7908]
[1734349728367,2.5518,3918.8,3917.9,0.754]
[1734349728531,0.7687,3919.2,3917.9,0.754]
[1734349728962,2.55173,3918.9,3917.9,0.754]
[1734349729166,2.55194,3918.6,3917.9,0.754]
[1734349729367,2.55173,3918.9,3917.9,0.754]
[1734349729368,2.55178,3918.9,3917.9,0.754]
[1734349729579,2.55157,3919.2,3918.3,0.8201]
[1734349729738,2.55117,3919.8,3918.6,3.00282815]
[1734349729934,2.55138,3919.5,3918.7,0.8201]
[1734349730168,2.806518,3919.5,3918.7,0.8201]
[1734349730342,2.55141,3919.4,3918.7,0.8201]
[1734349730558,0.255138,3919.5,3918.7,0.8201]
[1734349730728,2.55141,3919.4,3919.0,3.00282815]
[1734349731083,0.13045496,3920.4,3919.1,0.8201]
[1734349731238,2.55153,3919.3,3919.1,0.8201]
[1734349731650,2.55133,3919.6,3919.1,0.8201]
[1734349731976,2.55135,3919.5,3919.1,0.8201]
[1734349732276,2.55107,3920.0,3919.1,0.8201]
[1734349732490,0.2681275,3920.2,3918.0,0.37568282]
[1734349732491,2.8190275,3920.2,3919.5,0.7897]
[1734349732781,0.2681275,3920.2,3919.5,0.7897]
[1734349732931,2.55069,3920.5,3919.5,0.7897]
[1734349733655,2.55051,3920.8,3919.5,0.7897]
[1734349733850,2.55032,3921.1,3919.9,0.8129]
[1734349734084,2.55051,3920.8,3919.9,0.8129]
[1734349734386,2.5507,3920.5,3919.9,0.8129]
[1734349735174,2.55056,3920.7,3919.9,0.8129]
[1734349735538,0.26746607,3921.4,3919.9,0.8129]
[1734349735539,2.5503,3921.2,3919.9,4.53064]
[1734349735743,2.5495,3922.4,3920.2,3.00282815]
[1734349735744,2.55049,3920.9,3920.2,3.00282815]
[1734349735988,3.00282815,3921.9,3920.0,0.787]
[1734349736173,2.55066,3920.6,3920.0,0.787]
[1734349736345,2.55004,3921.5,3920.0,0.787]
[1734349736346,2.5501,3921.5,3920.0,0.787]
[1734349736540,2.88496,3921.4,3920.0,0.787]
[1734349736746,2.55058,3920.7,3920.0,0.787]
[1734349737189,2.5506,3920.7,3920.0,0.787]
[1734349737495,2.55028,3921.2,3920.0,0.787]
[1734349737640,2.55044,3920.9,3920.0,0.787]
[1734349737847,0.33486,3921.4,3920.0,0.787]
[1734349737848,2.55052,3920.8,3920.0,0.787]
[1734349738255,0.7985,3921.7,3920.0,0.787]
[1734349738256,2.55036,3921.1,3920.0,0.787]
[1734349738457,2.55043,3920.9,3920.0,0.787]
[1734349738663,0.7985,3921.7,3920.0,0.787]
[1734349738895,2.5502,3921.3,3920.2,0.778]
[1734349739747,2.54989,3921.8,3920.2,0.778]
[1734349739977,2.55011,3921.4,3920.3,0.7716]
[1734349740289,0.55,3921.2,3920.3,0.7716]
[1734349740646,2.5503,3921.1,3920.3,0.7716]
[1734349740990,0.55,3921.0,3920.3,0.7716]
[1734349741193,2.55065,3920.6,3920.3,0.7716]
[1734349741499,2.55076,3920.4,3920.3,0.7716]
[1734349741655,2.55089,3920.3,3919.4,0.7819]
[1734349741816,2.55086,3920.3,3919.4,0.7819]
[1734349742017,2.55089,3920.2,3919.4,0.7819]
[1734349742347,0.55,3920.1,3919.4,1.46037282]
[1734349742703,2.55065,3920.6,3919.5,0.7922]
[1734349742948,0.55,3921.0,3919.5,0.7922]
[1734349743135,2.55104,3920.0,3919.5,0.7922]
[1734349743339,0.55,3919.9,3919.5,0.7922]
[1734349743518,2.55117,3919.8,3919.5,0.7922]
[1734349743920,2.551,3920.1,3919.5,0.7922]
[1734349744434,2.55102,3920.0,3919.5,0.7922]
[1734349744638,2.55109,3919.9,3919.5,0.7922]
[1734349744860,2.55089,3920.2,3919.5,0.7922]
[1734349745014,2.55078,3920.4,3919.5,0.7922]
[1734349745724,0.8227,3921.7,3919.8,0.773]
[1734349745920,2.55004,3921.5,3919.8,0.773]
[1734349746128,2.55051,3920.8,3919.8,0.773]
[1734349746308,2.55004,3921.5,3919.8,0.773]
[1734349746511,3.00282815,3921.5,3919.8,0.773]
[1734349746708,3.00282815,3921.1,3919.8,0.773]
[1734349746907,2.55099,3920.1,3919.8,0.773]
[1734349747137,2.55103,3920.0,3919.8,0.773]
[1734349747827,2.55084,3920.3,3919.8,0.773]
[1734349748227,1.3727,3920.9,3919.8,0.773]
[1734349748424,2.55108,3919.9,3919.8,0.773]
[1734349749863,2.55098,3920.1,3919.8,0.773]
[1734349750624,2.55069,3920.5,3919.8,0.773]
[1734349750832,2.55056,3920.7,3919.8,0.773]
[1734349751038,2.55096,3920.1,3919.8,0.773]
[1734349751245,2.55107,3920.0,3919.8,0.773]
[1734349751434,2.55105,3920.0,3919.8,0.773]
[1734349751850,2.55069,3920.5,3919.8,0.773]
[1734349751851,2.55095,3920.1,3919.8,0.773]
[1734349752270,2.55082,3920.4,3919.8,0.773]
[1734349752476,2.55034,3921.1,3919.4,0.8265]
[1734349752785,0.38255282,3921.6,3920.1,0.8265]
[1734349752961,2.5503,3921.1,3920.1,0.8265]
[1734349754367,2.55018,3921.3,3920.2,0.7629]
[1734349755078,2.55032,3921.1,3920.2,0.7629]
[1734349755491,0.55,3921.6,3920.2,0.7629]
[1734349755492,2.55039,3921.0,3920.2,0.7629]
[1734349755696,2.55055,3920.8,3920.2,0.7629]
[1734349756038,2.55037,3921.0,3920.2,0.7629]
[1734349756970,2.55043,3920.9,3920.2,0.7629]
[1734349757177,2.55049,3920.9,3920.2,0.7629]
[1734349758336,2.55049,3920.9,3920.2,0.992254]
[1734349759089,2.55059,3920.7,3920.2,0.7629]
[1734349759392,0.389639,3921.4,3920.2,0.7629]
[1734349759549,0.389639,3921.4,3918.3,2.16178074]
[1734349759550,2.5503,3921.1,3919.1,0.7539]
[1734349759876,2.55082,3920.3,3919.3,0.7539]
[1734349760083,2.55082,3920.3,3919.4,0.228482]
[1734349760305,2.55082,3920.3,3919.5,0.7539]
[1734349761260,2.55109,3919.9,3919.5,0.7539]
[1734349762115,0.55,3920.7,3919.5,0.7539]
[1734349762424,2.55097,3920.1,3919.5,0.7539]
[1734349762706,0.55,3920.8,3919.5,0.7539]
[1734349762905,2.55105,3920.0,3919.5,0.7539]
[1734349764420,0.55,3920.7,3919.5,0.7539]
[1734349764706,2.55063,3920.6,3919.5,0.7539]
[1734349764863,2.55098,3920.1,3919.5,0.7539]
[1734349765763,2.55076,3920.4,3919.5,0.7539]
[1734349765967,2.55107,3920.0,3919.5,0.7539]
[1734349766422,2.5509,3920.2,3919.5,0.7539]
[1734349766586,0.310063,3920.5,3919.5,0.7539]
[1734349766587,2.55076,3920.4,3919.5,0.7539]
[1734349766768,2.55097,3920.1,3919.5,0.7539]
[1734349767262,2.55108,3920.0,3919.5,0.7539]
[1734349767709,2.5511,3919.9,3919.5,0.7539]
[1734349768663,2.55076,3920.4,3919.5,0.7539]
[1734349768895,2.55095,3920.1,3919.5,0.7539]
[1734349771728,2.55106,3920.0,3919.5,0.7539]
[1734349772773,2.55154,3919.2,3918.4,0.8158]
[1734349773729,2.55128,3919.6,3918.4,0.8158]
[1734349774020,2.55141,3919.4,3918.5,0.23471]
[1734349774247,2.55141,3919.4,3918.4,3.8158]
[1734349774248,2.55141,3919.4,3918.4,2.34703]
[1734349775722,3.60492703,3919.9,3918.4,0.8158]
[1734349775723,2.55147,3919.3,3918.4,0.8158]
[1734349775922,3.60499703,3919.8,3918.4,0.8158]
[1734349776222,2.55135,3919.5,3918.4,2.34703]
[1734349776427,2.55135,3919.5,3918.5,3.234703]
[1734349776572,2.55141,3919.4,3918.5,0.234703]
[1734349776777,4.40709703,3919.6,3918.4,0.8158]
[1734349777010,2.55161,3919.1,3918.4,0.8158]
[1734349778425,1.05381703,3919.3,3918.4,0.8158]
[1734349778636,1.05381703,3919.3,3918.0,0.7698]
[1734349778637,1.60381703,3919.1,3918.0,0.7698]
[1734349778928,2.55205,3918.5,3918.0,0.7698]
[1734349779379,3.60549703,3919.0,3918.0,0.7698]
[1734349779380,2.55185,3918.8,3918.0,0.7698]
[1734349780063,2.55193,3918.6,3918.0,0.7698]
[1734349780431,1.60381703,3919.1,3918.0,0.7698]
[1734349780633,1.85821703,3918.9,3918.0,0.7698]
[1734349780842,2.55218,3918.3,3918.0,0.7698]
[1734349781043,2.17424432,3918.8,3917.2,0.7638]
[1734349781044,2.55225,3918.1,3917.2,0.7638]
[1734349781359,1.85821703,3918.9,3917.2,0.7638]
[1734349781360,2.55232,3918.0,3917.2,0.7638]
[1734349781544,2.55242,3917.9,3917.2,0.7638]
[1734349781766,2.55211,3918.4,3917.2,0.7638]
[1734349781925,2.55267,3917.5,3917.2,0.7638]
[1734349782125,2.43495709,3918.2,3917.2,0.7638]
[1734349782355,0.55,3917.8,3917.2,0.7638]
[1734349782573,2.55272,3917.4,3917.2,0.7638]
[1734349783005,3.10227,3918.1,3916.1,0.7787]
[1734349783301,2.55279,3917.3,3916.2,0.7787]
[1734349783953,0.55,3918.1,3916.2,0.7787]
[1734349784153,0.55,3918.1,3916.4,1.53198]
[1734349784154,2.55261,3917.6,3916.4,1.53198]
[1734349784397,2.55247,3917.8,3916.7,0.8122]
[1734349785105,2.55254,3917.7,3916.7,0.8122]
[1734349785428,2.55263,3917.6,3916.7,0.8122]
[1734349785608,0.55,3918.2,3916.7,0.8122]
[1734349785899,0.55,3918.0,3916.7,0.8122]
[1734349786061,2.5529,3917.2,3916.7,0.8122]
[1734349786271,0.8119,3917.6,3916.3,0.8234]
[1734349786595,3.13260171,3917.5,3916.3,0.8234]
[1734349786780,2.5529,3917.2,3916.3,0.8234]
[1734349786951,3.13260171,3917.5,3916.3,0.8234]
[1734349787152,2.55312,3916.8,3916.3,0.8234]
[1734349787352,2.55276,3917.4,3916.3,0.8234]
[1734349787554,2.55298,3917.0,3916.3,0.8234]
[1734349788194,0.39446017,3917.4,3916.3,0.8234]
[1734349788495,0.57994171,3917.5,3916.3,0.8234]
[1734349788815,2.55271,3917.4,3916.3,0.8234]
[1734349789103,2.55321,3916.7,3916.3,0.8234]
[1734349789407,2.55325,3916.6,3916.3,0.8234]
[1734349789608,2.55325,3916.6,3915.5,0.8237]
[1734349789752,2.55324,3916.6,3915.6,0.23561]
[1734349789954,2.55325,3916.6,3915.6,0.23561]
[1734349790291,0.7829,3916.6,3915.5,0.8237]
[1734349790596,2.55343,3916.3,3915.5,0.8237]
[1734349790818,0.7829,3916.6,3915.5,0.8237]
[1734349791150,2.55338,3916.4,3915.5,0.8237]
[1734349791250,2.55343,3916.3,3915.5,0.8237]
[1734349791453,2.55331,3916.5,3915.5,1.059316]
[1734349791955,0.7829,3916.6,3915.5,1.059316]
[1734349792148,2.43495709,3917.0,3915.5,1.059316]
[1734349792349,2.55317,3916.7,3915.6,1.53232]
[1734349792594,2.55317,3916.7,3915.7,0.2591636]
[1734349792803,3.34803,3917.0,3915.7,1.7914336]
[1734349792969,2.55311,3916.8,3915.8,0.7862]
[1734349793169,2.55318,3916.7,3915.8,0.7862]
[1734349793394,2.55363,3916.0,3915.0,0.7935]
[1734349793594,2.5535,3916.2,3915.0,0.7935]
[1734349793902,2.5535,3916.2,3915.0,2.32605]
[1734349794084,2.5535,3916.2,3915.1,0.27245577]
[1734349794268,2.55346,3916.3,3915.3,1.53244]
[1734349794503,2.55347,3916.3,3915.4,0.7507]
[1734349795755,3.20665709,3916.9,3915.4,0.7507]
[1734349796097,2.55325,3916.6,3915.6,0.7638]
[1734349796452,1.34766471,3916.9,3915.6,0.7638]
[1734349796453,2.55336,3916.5,3915.6,0.7638]
[1734349796674,6.3356618,3916.9,3915.6,0.7638]
[1734349796675,2.55365,3916.0,3915.6,0.7638]
[1734349796872,2.55365,3916.0,3914.8,1.93114774]
[1734349796873,2.43495709,3916.5,3914.9,0.8319]
[1734349797060,2.55366,3916.0,3914.9,0.8319]
[1734349797296,0.54349571,3916.4,3914.9,0.8319]
[1734349797521,2.55383,3915.7,3914.9,0.8319]
[1734349797667,3.35299,3916.2,3914.9,0.8319]
[1734349797873,2.55391,3915.6,3914.9,0.8319]
[1734349798096,2.55396,3915.5,3914.9,0.8319]
[1734349798924,2.55383,3915.7,3914.9,0.8319]
[1734349799085,0.38964857,3916.1,3914.9,0.8319]
[1734349799086,2.55389,3915.6,3914.9,0.8319]
[1734349799287,2.55367,3916.0,3914.9,0.8319]
[1734349799591,2.55367,3916.0,3914.8,0.39850774]
[1734349799592,2.55415,3915.2,3914.8,0.39850774]
[1734349799792,2.43495709,3915.7,3914.6,0.7699]
[1734349799990,2.55408,3915.3,3914.6,0.7699]
[1734349800242,2.55416,3915.2,3914.6,0.7699]
[1734349800392,2.55397,3915.5,3914.6,0.7699]
[1734349801333,2.55376,3915.8,3914.7,1.53268]
[1734349801487,2.55376,3915.8,3914.6,0.7699]
[1734349801488,0.8244,3915.9,3914.6,0.7699]
[1734349801694,2.55395,3915.5,3914.6,0.7699]
[1734349802555,0.8244,3915.9,3914.6,0.7699]
[1734349802779,0.38964857,3916.1,3914.6,0.79544384]
[1734349802951,0.55,3916.2,3915.1,0.8297]
[1734349803392,2.55367,3916.0,3915.1,0.8297]
[1734349803550,0.7854,3916.3,3915.1,0.8297]
[1734349803758,2.5535,3916.2,3915.1,0.8297]
[1734349804037,2.55337,3916.4,3915.1,0.8297]
[1734349804318,2.55343,3916.3,3915.2,1.53247]
[1734349804992,0.8162,3916.7,3914.9,0.7833]
[1734349805141,2.55313,3916.8,3915.8,0.7833]
[1734349805658,0.7622,3917.1,3915.8,0.7833]
[1734349806054,2.55317,3916.7,3915.8,0.7833]
[1734349806488,2.55297,3917.0,3915.8,0.7833]
[1734349806686,2.55369,3915.9,3914.9,0.7811]
[1734349806894,2.55356,3916.1,3915.0,0.07975239]
[1734349807101,0.7851,3916.3,3915.1,0.07975239]
[1734349807313,0.55,3916.1,3915.2,0.07975551]
[1734349807602,0.55,3916.1,3914.9,0.7811]
[1734349807603,2.55383,3915.7,3914.9,0.7811]
[1734349807813,0.55,3916.1,3914.9,0.7811]
[1734349807951,2.55392,3915.6,3914.9,0.7811]
[1734349808148,2.55403,3915.4,3914.9,0.7811]
[1734349808350,2.809433,3915.4,3914.9,0.7811]
[1734349808763,2.55391,3915.6,3914.9,0.7811]
[1734349808963,2.98495709,3916.1,3914.9,0.7811]
[1734349809211,0.7546,3915.6,3914.9,0.7811]
[1734349809456,2.55429,3915.0,3914.6,0.8286]
[1734349809612,2.55456,3914.6,3913.4,1.53315]
[1734349809829,2.55458,3914.6,3913.7,0.39880842]
[1734349809963,2.55458,3914.6,3913.8,0.89547871]
[1734349810162,2.55462,3914.5,3913.8,0.8157]
[1734349810363,0.767,3915.1,3913.8,0.8157]
[1734349810721,0.55,3914.4,3913.7,0.39880842]
[1734349811017,2.55486,3914.1,3913.7,0.39880842]
[1734349812213,0.55,3914.5,3913.7,0.39880842]
[1734349812431,2.55474,3914.3,3913.7,0.39880842]
[1734349812716,0.937148,3914.5,3913.7,0.39880842]
[1734349812927,2.55478,3914.3,3913.7,0.39880842]
[1734349813268,2.5548,3914.2,3913.7,0.39880842]
[1734349813788,2.55468,3914.4,3913.7,0.39880842]
[1734349813987,0.387148,3914.5,3913.7,0.39880842]
[1734349814170,2.55486,3914.1,3913.7,0.39880842]
[1734349814365,3.32158,3914.6,3913.7,0.39880842]
[1734349814366,0.55,3914.5,3913.7,0.39880842]
[1734349815216,2.5552,3913.6,3912.9,0.7513]
[1734349815789,0.55,3914.0,3912.9,0.7513]
[1734349815978,3.10494,3914.0,3912.9,0.7513]
[1734349816227,2.55509,3913.8,3912.9,0.7513]
[1734349816524,2.55509,3913.8,3913.7,1.0]
[1734349817172,0.310494,3913.9,3913.7,1.0]
[1734349817599,2.55506,3913.8,3913.7,1.0]
[1734349818006,0.310494,3913.9,3913.7,1.0]
[1734349818214,0.3415364,3913.8,3913.7,1.0]
[1734349818529,2.8965964,3913.8,3913.7,1.0]
[1734349820084,2.55506,3913.8,3913.7,1.0]
[1734349820321,0.55,3914.2,3913.7,1.0]
[1734349820620,3.10481,3914.2,3913.7,1.0]
[1734349821113,2.55488,3914.1,3913.7,1.0]
[1734349822123,2.55501,3913.9,3913.7,1.0]
[1734349822836,2.55506,3913.8,3913.7,1.0]
[1734349823421,3.10506,3913.8,3913.7,1.0]
[1734349823732,3.86096,3913.8,3913.7,1.0]
[1734349824804,2.55572,3912.8,3912.5,0.005]
[1734349825173,2.55578,3912.7,3912.5,0.005]
[1734349825386,2.55584,3912.6,3912.5,0.005]
[1734349825923,3.10584,3912.6,3912.5,0.005]
[1734349826083,2.55584,3912.6,3912.5,0.005]
[1734349826278,3.10584,3912.6,3912.5,0.005]
[1734349826678,2.55584,3912.6,3912.5,0.005]
[1734349827076,2.55565,3912.9,3912.5,0.005]
[1734349827379,2.59109719,3913.7,3912.5,0.005]
[1734349827380,2.55546,3913.2,3912.6,0.7538]
[1734349827609,2.55548,3913.2,3912.6,0.7538]
[1734349827777,6.30524,3913.6,3912.5,0.005]
[1734349827778,2.55565,3912.9,3912.5,0.005]
[1734349827979,0.255565,3912.9,3912.5,0.005]
[1734349828224,2.55584,3912.6,3912.5,0.005]
[1734349828936,0.55,3913.2,3912.5,0.005]
[1734349829138,2.55557,3913.1,3912.5,0.005]
[1734349829502,2.55559,3913.0,3912.5,0.005]
[1734349829801,0.55,3913.4,3912.5,0.005]
[1734349830064,2.55552,3913.1,3912.5,0.005]
[1734349830198,2.55538,3913.3,3912.5,0.005]
[1734349830398,2.55546,3913.2,3912.5,0.005]
[1734349830720,2.55531,3913.5,3912.6,0.7538]
[1734349830916,2.7112701,3913.7,3912.6,2.2873]
[1734349831212,2.55513,3913.7,3912.6,2.51653]
[1734349831397,0.255501,3913.9,3912.6,0.98303]
[1734349831601,2.5552,3913.6,3912.6,0.7538]
[1734349831800,0.255501,3913.9,3912.6,0.7538]
[1734349832092,2.55543,3913.3,3912.6,0.7538]
[1734349832249,2.55551,3913.2,3912.6,0.7538]
[1734349832447,2.55529,3913.5,3912.6,0.7538]
[1734349832752,0.55,3912.9,3912.6,0.7538]
[1734349833639,0.55,3913.1,3912.6,0.7538]
[1734349833844,0.55,3913.0,3912.6,0.7538]
[1734349834403,3.10545,3913.3,3912.6,0.7538]